fUST/lending_fUST_20260524
["ID","MTS","AMOUNT","RATE_DAILY","PERIOD"]
[422869415,1779553838000,-558.75375313,8.385e-05,2]
[422869411,1779553838000,-500.0,8.385e-05,2]
[422869416,1779553838000,-500.0,8.385e-05,2]
[422869407,1779553838000,-156.57226069,8.385e-05,2]
[422869406,1779553838000,-500.72095809,8.385e-05,2]
[422869417,1779553838000,-503.02773617,8.385e-05,2]
[422869418,1779553838000,-368.31783327,8.385e-05,2]
[422869412,1779553838000,-501.61049014,8.385e-05,2]
[422869413,1779553838000,-500.0,8.385e-05,2]
[422869419,1779553838000,-500.0,8.385e-05,2]
[422869421,1779553838000,-500.0,8.385e-05,2]
[422869422,1779553838000,-500.0,8.385e-05,2]
[422869391,1779553838000,-500.0,8.287e-05,2]
[422869409,1779553838000,-501.61947116,8.385e-05,2]
[422869399,1779553838000,-500.0,8.287e-05,2]
[422869420,1779553838000,-502.34803723,8.385e-05,2]
[422869402,1779553838000,-1605.03,8.287e-05,2]
[422869376,1779553838000,-500.0,8.219e-05,2]
[422869394,1779553838000,-500.0,8.287e-05,2]
[422869378,1779553838000,-500.0,8.219e-05,2]
[422869384,1779553838000,-501.48493491,8.287e-05,2]
[422869382,1779553838000,-500.0,8.287e-05,2]
[422869379,1779553838000,-420.0,8.249e-05,2]
[422869385,1779553838000,-502.26054654,8.287e-05,2]
[422869396,1779553838000,-500.0,8.287e-05,2]
[422869381,1779553838000,-4132.04253714,8.271e-05,2]
[422869395,1779553838000,-500.0,8.287e-05,2]
[422869397,1779553838000,-500.0,8.287e-05,2]
[422869398,1779553838000,-500.0,8.287e-05,2]
[422869404,1779553838000,-45920.71950036,8.288e-05,2]
[422869405,1779553838000,-500.65956743,8.385e-05,2]
[422869401,1779553838000,-500.0,8.287e-05,2]
[422869403,1779553838000,-459.47823427,8.287e-05,2]
[422869393,1779553838000,-719.46,8.287e-05,2]
[422869400,1779553838000,-500.33137294,8.287e-05,2]
[422869464,1779553839000,-501.40608444,8.386e-05,2]
[422869468,1779553839000,-542.11614837,8.386e-05,2]
[422869461,1779553839000,-500.33373265,8.386e-05,2]
[422869459,1779553839000,-503.54273371,8.386e-05,2]
[422869460,1779553839000,-500.57521612,8.386e-05,2]
[422869462,1779553839000,-500.0,8.386e-05,2]
[422869467,1779553839000,-500.0,8.386e-05,2]
[422869463,1779553839000,-291.00342421,8.386e-05,2]
[422869458,1779553839000,-883.02,8.386e-05,2]
[422869457,1779553839000,-500.0,8.386e-05,2]
[422869480,1779553839000,-500.0,8.386e-05,2]
[422869456,1779553839000,-500.0,8.386e-05,2]
[422869465,1779553839000,-500.0,8.386e-05,2]
[422869469,1779553839000,-500.0,8.386e-05,2]
[422869477,1779553839000,-500.66704319,8.386e-05,2]
[422869481,1779553839000,-500.0,8.386e-05,2]
[422869471,1779553839000,-512.79201713,8.386e-05,2]
[422869472,1779553839000,-501.40867943,8.386e-05,2]
[422869473,1779553839000,-500.0,8.386e-05,2]
[422869475,1779553839000,-500.0,8.386e-05,2]
[422869474,1779553839000,-501.19305898,8.386e-05,2]
[422869476,1779553839000,-500.0,8.386e-05,2]
[422869479,1779553839000,-500.0,8.386e-05,2]
[422869478,1779553839000,-154.89285204,8.386e-05,2]
[422869482,1779553839000,-500.0,8.386e-05,2]
[422869484,1779553839000,-500.0,8.386e-05,2]
[422869491,1779553839000,-500.0,8.386e-05,2]
[422869452,1779553839000,-500.0,8.386e-05,2]
[422869470,1779553839000,-501.46988491,8.386e-05,2]
[422869451,1779553839000,-501.64525682,8.386e-05,2]
[422869434,1779553839000,-584.08,8.385e-05,2]
[422869448,1779553839000,-501.25136034,8.386e-05,2]
[422869486,1779553839000,-231.71669623,8.386e-05,2]
[422869424,1779553839000,-1360.22,8.385e-05,2]
[422869425,1779553839000,-500.0,8.385e-05,2]
[422869429,1779553839000,-500.21268206,8.385e-05,2]
[422869423,1779553839000,-500.0,8.385e-05,2]
[422869428,1779553839000,-501.30475955,8.385e-05,2]
[422869426,1779553839000,-934.56,8.385e-05,2]
[422869427,1779553839000,-500.78372838,8.385e-05,2]
[422869431,1779553839000,-500.0,8.385e-05,2]
[422869430,1779553839000,-500.0,8.385e-05,2]
[422869442,1779553839000,-500.0,8.386e-05,2]
[422869432,1779553839000,-501.56174332,8.385e-05,2]
[422869433,1779553839000,-7855.17,8.385e-05,2]
[422869441,1779553839000,-500.0,8.386e-05,2]
[422869435,1779553839000,-1614.38,8.385e-05,2]
[422869440,1779553839000,-500.0,8.386e-05,2]
[422869439,1779553839000,-500.0,8.385e-05,2]
[422869438,1779553839000,-1351.15,8.385e-05,2]
[422869437,1779553839000,-500.0,8.385e-05,2]
[422869436,1779553839000,-500.0,8.385e-05,2]
[422869444,1779553839000,-500.0,8.386e-05,2]
[422869454,1779553839000,-500.0,8.386e-05,2]
[422869455,1779553839000,-506.61467452,8.386e-05,2]
[422869446,1779553839000,-500.0,8.386e-05,2]
[422869443,1779553839000,-500.0,8.386e-05,2]
[422869447,1779553839000,-500.0,8.386e-05,2]
[422869445,1779553839000,-500.76996663,8.386e-05,2]
[422869449,1779553839000,-501.29792266,8.386e-05,2]
[422869450,1779553839000,-578.88,8.386e-05,2]
[422869453,1779553839000,-500.0,8.386e-05,2]
[422869489,1779553839000,-501.05296294,8.386e-05,2]
[422869466,1779553839000,-501.80870024,8.386e-05,2]
[422869485,1779553839000,-500.99344774,8.386e-05,2]
[422869520,1779553839000,-500.96444607,8.386e-05,2]
[422869524,1779553839000,-500.0,8.386e-05,2]
[422869535,1779553839000,-503.41126342,8.386e-05,2]
[422869534,1779553839000,-500.60141661,8.386e-05,2]
[422869523,1779553839000,-500.0,8.386e-05,2]
[422869525,1779553839000,-502.90784818,8.386e-05,2]
[422869532,1779553839000,-502.07127785,8.386e-05,2]
[422869531,1779553839000,-500.0,8.386e-05,2]
[422869528,1779553839000,-500.0,8.386e-05,2]
[422869530,1779553839000,-500.0,8.386e-05,2]
[422869526,1779553839000,-500.98901805,8.386e-05,2]
[422869527,1779553839000,-500.87795346,8.386e-05,2]
[422869529,1779553839000,-500.0,8.386e-05,2]
[422869533,1779553839000,-500.19240763,8.386e-05,2]
[422869536,1779553839000,-500.601898,8.386e-05,2]
[422869539,1779553839000,-501.05765059,8.386e-05,2]
[422869542,1779553839000,-500.0,8.386e-05,2]
[422869541,1779553839000,-501.53148666,8.386e-05,2]
[422869538,1779553839000,-500.0,8.386e-05,2]
[422869537,1779553839000,-501.54859194,8.386e-05,2]
[422869540,1779553839000,-500.0,8.386e-05,2]
[422869549,1779553839000,-501.04232744,8.386e-05,2]
[422869555,1779553839000,-501.09586322,8.386e-05,2]
[422869552,1779553839000,-500.0,8.386e-05,2]
[422869546,1779553839000,-500.3583521,8.386e-05,2]
[422869544,1779553839000,-500.53229273,8.386e-05,2]
[422869557,1779553839000,-643.86843824,8.386e-05,2]
[422869559,1779553839000,-500.19686198,8.386e-05,2]
[422869487,1779553839000,-500.0,8.386e-05,2]
[422869519,1779553839000,-500.0,8.386e-05,2]
[422869522,1779553839000,-500.73390282,8.386e-05,2]
[422869561,1779553839000,-582.10885884,8.386e-05,2]
[422869511,1779553839000,-1320.46,8.386e-05,2]
[422869490,1779553839000,-500.0,8.386e-05,2]
[422869488,1779553839000,-531.0107082,8.386e-05,2]
[422869483,1779553839000,-500.0,8.386e-05,2]
[422869493,1779553839000,-501.59169404,8.386e-05,2]
[422869492,1779553839000,-500.0,8.386e-05,2]
[422869495,1779553839000,-500.0,8.386e-05,2]
[422869494,1779553839000,-557.92780392,8.386e-05,2]
[422869496,1779553839000,-501.00053133,8.386e-05,2]
[422869502,1779553839000,-500.0,8.386e-05,2]
[422869498,1779553839000,-500.88102834,8.386e-05,2]
[422869497,1779553839000,-501.05104627,8.386e-05,2]
[422869505,1779553839000,-500.0,8.386e-05,2]
[422869500,1779553839000,-500.0,8.386e-05,2]
[422869499,1779553839000,-501.22262463,8.386e-05,2]
[422869501,1779553839000,-501.07768375,8.386e-05,2]
[422869504,1779553839000,-500.0,8.386e-05,2]
[422869521,1779553839000,-500.0,8.386e-05,2]
[422869503,1779553839000,-500.49786065,8.386e-05,2]
[422869517,1779553839000,-500.0,8.386e-05,2]
[422869516,1779553839000,-500.84169227,8.386e-05,2]
[422869514,1779553839000,-500.0,8.386e-05,2]
[422869512,1779553839000,-500.0,8.386e-05,2]
[422869515,1779553839000,-500.0,8.386e-05,2]
[422869518,1779553839000,-500.0,8.386e-05,2]
[422869510,1779553839000,-501.3029809,8.386e-05,2]
[422869509,1779553839000,-501.09674288,8.386e-05,2]
[422869508,1779553839000,-500.0,8.386e-05,2]
[422869507,1779553839000,-501.01109865,8.386e-05,2]
[422869563,1779553839000,-500.0,8.386e-05,2]
[422869506,1779553839000,-514.96761921,8.386e-05,2]
[422869513,1779553839000,-501.03714716,8.386e-05,2]
[422869649,1779553840000,-500.0,8.387e-05,2]
[422869642,1779553840000,-500.0,8.387e-05,2]
[422869651,1779553840000,-511.61264138,8.387e-05,2]
[422869638,1779553840000,-500.0,8.387e-05,2]
[422869648,1779553840000,-500.0,8.387e-05,2]
[422869632,1779553840000,-500.0,8.387e-05,2]
[422869636,1779553840000,-500.0,8.387e-05,2]
[422869646,1779553840000,-500.0,8.387e-05,2]
[422869634,1779553840000,-500.0,8.387e-05,2]
[422869619,1779553840000,-500.0,8.387e-05,2]
[422869644,1779553840000,-500.0,8.387e-05,2]
[422869640,1779553840000,-500.0,8.387e-05,2]
[422869625,1779553840000,-500.0,8.387e-05,2]
[422869663,1779553840000,-500.0,8.387e-05,2]
[422869653,1779553840000,-500.0,8.387e-05,2]
[422869655,1779553840000,-500.0,8.387e-05,2]
[422869659,1779553840000,-500.0,8.387e-05,2]
[422869661,1779553840000,-399.73969229,8.387e-05,2]
[422869665,1779553840000,-500.0,8.387e-05,2]
[422869667,1779553840000,-500.0,8.387e-05,2]
[422869669,1779553840000,-500.0,8.387e-05,2]
[422869675,1779553840000,-500.0,8.387e-05,2]
[422869682,1779553840000,-500.0,8.387e-05,2]
[422869678,1779553840000,-500.0,8.387e-05,2]
[422869676,1779553840000,-500.0,8.387e-05,2]
[422869671,1779553840000,-500.0,8.387e-05,2]
[422869673,1779553840000,-500.0,8.387e-05,2]
[422869616,1779553840000,-500.0,8.387e-05,2]
[422869657,1779553840000,-500.0,8.387e-05,2]
[422869627,1779553840000,-500.0,8.387e-05,2]
[422869600,1779553840000,-543.65614782,8.387e-05,2]
[422869630,1779553840000,-500.0,8.387e-05,2]
[422869680,1779553840000,-500.0,8.387e-05,2]
[422869565,1779553840000,-532.57815947,8.386e-05,2]
[422869569,1779553840000,-500.0,8.386e-05,2]
[422869567,1779553840000,-500.0,8.386e-05,2]
[422869574,1779553840000,-1180.6854,8.386e-05,2]
[422869571,1779553840000,-500.0,8.386e-05,2]
[422869576,1779553840000,-500.0,8.387e-05,2]
[422869573,1779553840000,-500.49931699,8.386e-05,2]
[422869580,1779553840000,-500.0,8.387e-05,2]
[422869578,1779553840000,-500.0,8.387e-05,2]
[422869584,1779553840000,-500.0,8.387e-05,2]
[422869582,1779553840000,-357.15624351,8.387e-05,2]
[422869586,1779553840000,-500.0,8.387e-05,2]
[422869613,1779553840000,-237.99237973,8.387e-05,2]
[422869597,1779553840000,-500.0,8.387e-05,2]
[422869590,1779553840000,-502.34755753,8.387e-05,2]
[422869588,1779553840000,-500.0,8.387e-05,2]
[422869593,1779553840000,-502.30660473,8.387e-05,2]
[422869592,1779553840000,-500.0,8.387e-05,2]
[422869601,1779553840000,-500.0,8.387e-05,2]
[422869603,1779553840000,-500.0,8.387e-05,2]
[422869605,1779553840000,-500.0,8.387e-05,2]
[422869607,1779553840000,-501.31940103,8.387e-05,2]
[422869609,1779553840000,-500.0,8.387e-05,2]
[422869621,1779553840000,-500.0,8.387e-05,2]
[422869611,1779553840000,-500.0,8.387e-05,2]
[422869622,1779553840000,-500.0,8.387e-05,2]
[422869628,1779553840000,-500.0,8.387e-05,2]
[422869595,1779553840000,-500.0,8.387e-05,2]
[422869684,1779553840000,-500.0,8.387e-05,2]
[422869686,1779553840000,-500.0,8.387e-05,2]
[422869802,1779553840000,-215.00241,8.387e-05,2]
[422869758,1779553840000,-500.0,8.387e-05,2]
[422869749,1779553840000,-500.0,8.387e-05,2]
[422869745,1779553840000,-500.0,8.387e-05,2]
[422869759,1779553840000,-500.0,8.387e-05,2]
[422869762,1779553840000,-244.681792,8.387e-05,2]
[422869766,1779553840000,-244.681792,8.387e-05,2]
[422869764,1779553840000,-244.681792,8.387e-05,2]
[422869780,1779553840000,-151.0,8.387e-05,2]
[422869781,1779553840000,-151.217223,8.387e-05,2]
[422869771,1779553840000,-500.0,8.387e-05,2]
[422869787,1779553840000,-431.823827,8.387e-05,2]
[422869783,1779553840000,-151.0,8.387e-05,2]
[422869777,1779553840000,-151.0,8.387e-05,2]
[422869747,1779553840000,-500.0,8.387e-05,2]
[422869773,1779553840000,-244.681792,8.387e-05,2]
[422869785,1779553840000,-431.823827,8.387e-05,2]
[422869791,1779553840000,-500.0,8.387e-05,2]
[422869790,1779553840000,-431.823827,8.387e-05,2]
[422869789,1779553840000,-431.823827,8.387e-05,2]
[422869797,1779553840000,-151.0,8.387e-05,2]
[422869798,1779553840000,-500.38497052,8.387e-05,2]
[422869795,1779553840000,-500.0,8.387e-05,2]
[422869793,1779553840000,-151.0,8.387e-05,2]
[422869800,1779553840000,-500.0,8.387e-05,2]
[422869801,1779553840000,-215.00241,8.387e-05,2]
[422869799,1779553840000,-215.00241,8.387e-05,2]
[422869792,1779553840000,-151.0,8.387e-05,2]
[422869688,1779553840000,-500.0,8.387e-05,2]
[422869775,1779553840000,-500.0,8.387e-05,2]
[422869743,1779553840000,-500.0,8.387e-05,2]
[422869778,1779553840000,-151.0,8.387e-05,2]
[422869753,1779553840000,-500.0,8.387e-05,2]
[422869755,1779553840000,-450.30060714,8.387e-05,2]
[422869700,1779553840000,-500.0,8.387e-05,2]
[422869702,1779553840000,-584.91699935,8.387e-05,2]
[422869706,1779553840000,-500.0,8.387e-05,2]
[422869704,1779553840000,-503.21627591,8.387e-05,2]
[422869707,1779553840000,-500.0,8.387e-05,2]
[422869698,1779553840000,-500.0,8.387e-05,2]
[422869692,1779553840000,-500.0,8.387e-05,2]
[422869694,1779553840000,-420.690807,8.387e-05,2]
[422869696,1779553840000,-500.0,8.387e-05,2]
[422869709,1779553840000,-500.0,8.387e-05,2]
[422869711,1779553840000,-500.0,8.387e-05,2]
[422869713,1779553840000,-500.0,8.387e-05,2]
[422869715,1779553840000,-500.0,8.387e-05,2]
[422869719,1779553840000,-501.07805286,8.387e-05,2]
[422869690,1779553840000,-500.0,8.387e-05,2]
[422869751,1779553840000,-500.0,8.387e-05,2]
[422869739,1779553840000,-500.55290999,8.387e-05,2]
[422869741,1779553840000,-500.0,8.387e-05,2]
[422869735,1779553840000,-500.0,8.387e-05,2]
[422869721,1779553840000,-557.26802676,8.387e-05,2]
[422869732,1779553840000,-500.0,8.387e-05,2]
[422869726,1779553840000,-500.0,8.387e-05,2]
[422869737,1779553840000,-500.0,8.387e-05,2]
[422869728,1779553840000,-500.44445416,8.387e-05,2]
[422869734,1779553840000,-500.0,8.387e-05,2]
[422869723,1779553840000,-500.0,8.387e-05,2]
[422869717,1779553840000,-500.41584361,8.387e-05,2]
[422869724,1779553840000,-500.0,8.387e-05,2]
[422869730,1779553840000,-500.0,8.387e-05,2]
[422869855,1779553841000,-154.24,8.489e-05,2]
[422869856,1779553841000,-154.24,8.489e-05,2]
[422869845,1779553841000,-154.24,8.489e-05,2]
[422869843,1779553841000,-500.0,8.488e-05,2]
[422869841,1779553841000,-500.51424063,8.488e-05,2]
[422869836,1779553841000,-500.0,8.486e-05,2]
[422869840,1779553841000,-500.92030679,8.488e-05,2]
[422869839,1779553841000,-502.41331237,8.486e-05,2]
[422869837,1779553841000,-500.71472684,8.486e-05,2]
[422869833,1779553841000,-500.0,8.486e-05,2]
[422869832,1779553841000,-571.77261264,8.486e-05,2]
[422869844,1779553841000,-154.24,8.489e-05,2]
[422869842,1779553841000,-500.0,8.488e-05,2]
[422869846,1779553841000,-154.24,8.489e-05,2]
[422869852,1779553841000,-154.24,8.489e-05,2]
[422869850,1779553841000,-154.24,8.489e-05,2]
[422869848,1779553841000,-154.24,8.489e-05,2]
[422869847,1779553841000,-154.24,8.489e-05,2]
[422869854,1779553841000,-154.24,8.489e-05,2]
[422869851,1779553841000,-154.24,8.489e-05,2]
[422869853,1779553841000,-154.24,8.489e-05,2]
[422869860,1779553841000,-154.24,8.489e-05,2]
[422869862,1779553841000,-154.24,8.489e-05,2]
[422869858,1779553841000,-154.24,8.489e-05,2]
[422869864,1779553841000,-500.0,8.489e-05,2]
[422869867,1779553841000,-500.0,8.489e-05,2]
[422869859,1779553841000,-154.24,8.489e-05,2]
[422869866,1779553841000,-500.0,8.489e-05,2]
[422869849,1779553841000,-154.24,8.489e-05,2]
[422869838,1779553841000,-501.63689361,8.486e-05,2]
[422869857,1779553841000,-154.24,8.489e-05,2]
[422869834,1779553841000,-500.0,8.486e-05,2]
[422869803,1779553841000,-521.76182001,8.387e-05,2]
[422869804,1779553841000,-215.00241,8.387e-05,2]
[422869806,1779553841000,-500.0,8.387e-05,2]
[422869812,1779553841000,-501.03987391,8.387e-05,2]
[422869809,1779553841000,-500.0,8.387e-05,2]
[422869814,1779553841000,-227.344388,8.387e-05,2]
[422869813,1779553841000,-506.82425435,8.387e-05,2]
[422869810,1779553841000,-500.0,8.387e-05,2]
[422869811,1779553841000,-500.0,8.387e-05,2]
[422869808,1779553841000,-500.0,8.387e-05,2]
[422869807,1779553841000,-501.49393242,8.387e-05,2]
[422869815,1779553841000,-227.344388,8.387e-05,2]
[422869805,1779553841000,-500.0,8.387e-05,2]
[422869816,1779553841000,-500.5861989,8.387e-05,2]
[422869817,1779553841000,-500.0,8.387e-05,2]
[422869818,1779553841000,-227.344388,8.387e-05,2]
[422869819,1779553841000,-500.74000978,8.387e-05,2]
[422869828,1779553841000,-500.0,8.486e-05,2]
[422869829,1779553841000,-500.0,8.486e-05,2]
[422869820,1779553841000,-227.344388,8.387e-05,2]
[422869822,1779553841000,-992.383852,8.391e-05,2]
[422869830,1779553841000,-500.0,8.486e-05,2]
[422869823,1779553841000,-4411.02078826,8.417e-05,2]
[422869821,1779553841000,-502.41190848,8.387e-05,2]
[422869825,1779553841000,-500.0,8.486e-05,2]
[422869827,1779553841000,-500.0,8.486e-05,2]
[422869826,1779553841000,-500.0,8.486e-05,2]
[422869824,1779553841000,-176.69706827,8.437e-05,2]
[422869831,1779553841000,-500.0,8.486e-05,2]
[422869835,1779553841000,-500.0,8.486e-05,2]
[422869868,1779553841000,-500.0,8.489e-05,2]
[422869865,1779553841000,-500.0,8.489e-05,2]
[422869863,1779553841000,-500.0,8.489e-05,2]
[422869901,1779553841000,-500.0,8.561e-05,2]
[422869902,1779553841000,-500.0,8.561e-05,2]
[422869899,1779553841000,-500.0,8.561e-05,2]
[422869900,1779553841000,-719.46,8.561e-05,2]
[422869897,1779553841000,-500.0,8.561e-05,2]
[422869898,1779553841000,-500.0,8.561e-05,2]
[422869907,1779553841000,-500.0,8.561e-05,2]
[422869910,1779553841000,-500.0,8.659e-05,2]
[422869909,1779553841000,-500.0,8.582e-05,2]
[422869911,1779553841000,-503.06,8.659e-05,2]
[422869912,1779553841000,-500.0,8.659e-05,2]
[422869913,1779553841000,-500.0,8.659e-05,2]
[422869908,1779553841000,-1605.03,8.561e-05,2]
[422869896,1779553841000,-500.0,8.561e-05,2]
[422869914,1779553841000,-480.19713281,8.659e-05,2]
[422869919,1779553841000,-500.0,8.659e-05,2]
[422869917,1779553841000,-500.0,8.659e-05,2]
[422869918,1779553841000,-500.0,8.659e-05,2]
[422869916,1779553841000,-500.0,8.659e-05,2]
[422869921,1779553841000,-244.681792,8.659e-05,2]
[422869920,1779553841000,-1360.22,8.659e-05,2]
[422869923,1779553841000,-500.0,8.659e-05,2]
[422869924,1779553841000,-244.681792,8.659e-05,2]
[422869927,1779553841000,-151.0,8.659e-05,2]
[422869925,1779553841000,-244.681792,8.659e-05,2]
[422869926,1779553841000,-934.56,8.659e-05,2]
[422869922,1779553841000,-244.681792,8.659e-05,2]
[422869928,1779553841000,-151.0,8.659e-05,2]
[422869915,1779553841000,-500.0,8.659e-05,2]
[422869905,1779553841000,-500.0,8.561e-05,2]
[422869930,1779553841000,-151.0,8.659e-05,2]
[422869906,1779553841000,-500.0,8.561e-05,2]
[422869903,1779553841000,-500.0,8.561e-05,2]
[422869929,1779553841000,-151.0,8.659e-05,2]
[422869869,1779553841000,-500.0,8.489e-05,2]
[422869871,1779553841000,-330.649017,8.489e-05,2]
[422869870,1779553841000,-500.0,8.489e-05,2]
[422869873,1779553841000,-330.649017,8.489e-05,2]
[422869876,1779553841000,-453.054,8.489e-05,2]
[422869874,1779553841000,-330.649017,8.489e-05,2]
[422869872,1779553841000,-330.649017,8.489e-05,2]
[422869877,1779553841000,-453.054,8.489e-05,2]
[422869875,1779553841000,-453.054,8.489e-05,2]
[422869879,1779553841000,-358.225268,8.489e-05,2]
[422869878,1779553841000,-453.054,8.489e-05,2]
[422869880,1779553841000,-358.225268,8.489e-05,2]
[422869881,1779553841000,-124.13610681,8.489e-05,2]
[422869861,1779553841000,-154.24,8.489e-05,2]
[422869884,1779553841000,-161.743956,8.489e-05,2]
[422869882,1779553841000,-234.08916119,8.489e-05,2]
[422869904,1779553841000,-500.0,8.561e-05,2]
[422869894,1779553841000,-500.0,8.561e-05,2]
[422869895,1779553841000,-500.0,8.561e-05,2]
[422869892,1779553841000,-500.0,8.561e-05,2]
[422869888,1779553841000,-151.0,8.489e-05,2]
[422869889,1779553841000,-500.0,8.493e-05,2]
[422869893,1779553841000,-953.78,8.561e-05,2]
[422869883,1779553841000,-358.225268,8.489e-05,2]
[422869887,1779553841000,-161.743956,8.489e-05,2]
[422869890,1779553841000,-500.0,8.493e-05,2]
[422869885,1779553841000,-161.743956,8.489e-05,2]
[422869886,1779553841000,-161.743956,8.489e-05,2]
[422869891,1779553841000,-500.0,8.493e-05,2]
[422869965,1779553842000,-500.0,8.66e-05,2]
[422869982,1779553842000,-500.0,8.66e-05,2]
[422869966,1779553842000,-500.0,8.66e-05,2]
[422869968,1779553842000,-500.0,8.66e-05,2]
[422869970,1779553842000,-500.0,8.66e-05,2]
[422869964,1779553842000,-500.0,8.66e-05,2]
[422869973,1779553842000,-500.0,8.66e-05,2]
[422869971,1779553842000,-500.0,8.66e-05,2]
[422869967,1779553842000,-500.0,8.66e-05,2]
[422869974,1779553842000,-500.0,8.66e-05,2]
[422869963,1779553842000,-883.02,8.66e-05,2]
[422869969,1779553842000,-500.0,8.66e-05,2]
[422869981,1779553842000,-500.0,8.66e-05,2]
[422869980,1779553842000,-500.0,8.66e-05,2]
[422869975,1779553842000,-500.0,8.66e-05,2]
[422869977,1779553842000,-500.0,8.66e-05,2]
[422869979,1779553842000,-500.0,8.66e-05,2]
[422869978,1779553842000,-571.67452742,8.66e-05,2]
[422869972,1779553842000,-500.0,8.66e-05,2]
[422869983,1779553842000,-500.0,8.66e-05,2]
[422869987,1779553842000,-500.0,8.66e-05,2]
[422869984,1779553842000,-500.0,8.66e-05,2]
[422869985,1779553842000,-1320.46,8.66e-05,2]
[422869991,1779553842000,-500.0,8.66e-05,2]
[422869992,1779553842000,-500.0,8.66e-05,2]
[422869989,1779553842000,-500.0,8.66e-05,2]
[422869988,1779553842000,-500.0,8.66e-05,2]
[422869994,1779553842000,-500.0,8.66e-05,2]
[422869976,1779553842000,-500.0,8.66e-05,2]
[422869961,1779553842000,-500.0,8.66e-05,2]
[422869957,1779553842000,-500.0,8.66e-05,2]
[422869956,1779553842000,-500.0,8.66e-05,2]
[422869990,1779553842000,-500.0,8.66e-05,2]
[422869932,1779553842000,-431.823827,8.659e-05,2]
[422869931,1779553842000,-500.0,8.659e-05,2]
[422869933,1779553842000,-431.823827,8.659e-05,2]
[422869934,1779553842000,-500.0,8.659e-05,2]
[422869936,1779553842000,-431.823827,8.659e-05,2]
[422869938,1779553842000,-584.08,8.659e-05,2]
[422869937,1779553842000,-7855.17,8.659e-05,2]
[422869944,1779553842000,-215.00241,8.659e-05,2]
[422869935,1779553842000,-431.823827,8.659e-05,2]
[422869940,1779553842000,-151.0,8.659e-05,2]
[422869939,1779553842000,-1614.38,8.659e-05,2]
[422869943,1779553842000,-215.00241,8.659e-05,2]
[422869962,1779553842000,-500.0,8.66e-05,2]
[422869945,1779553842000,-215.00241,8.659e-05,2]
[422869941,1779553842000,-151.0,8.659e-05,2]
[422869947,1779553842000,-227.344388,8.659e-05,2]
[422869948,1779553842000,-227.344388,8.659e-05,2]
[422869949,1779553842000,-227.344388,8.659e-05,2]
[422869959,1779553842000,-500.0,8.66e-05,2]
[422869951,1779553842000,-227.344388,8.659e-05,2]
[422869952,1779553842000,-1351.15,8.659e-05,2]
[422869954,1779553842000,-500.0,8.66e-05,2]
[422869960,1779553842000,-500.0,8.66e-05,2]
[422869958,1779553842000,-500.0,8.66e-05,2]
[422869953,1779553842000,-500.0,8.659e-05,2]
[422869950,1779553842000,-500.0,8.659e-05,2]
[422869955,1779553842000,-500.0,8.66e-05,2]
[422869942,1779553842000,-215.00241,8.659e-05,2]
[422869946,1779553842000,-500.0,8.659e-05,2]
[422869986,1779553842000,-500.0,8.66e-05,2]
[422869996,1779553842000,-554.34416434,8.66e-05,2]
[422870038,1779553842000,-500.0,8.661e-05,2]
[422870033,1779553842000,-500.0,8.661e-05,2]
[422870039,1779553842000,-500.0,8.661e-05,2]
[422870029,1779553842000,-500.0,8.661e-05,2]
[422870030,1779553842000,-500.0,8.661e-05,2]
[422870041,1779553842000,-500.0,8.661e-05,2]
[422870052,1779553842000,-500.0,8.661e-05,2]
[422870043,1779553842000,-500.0,8.661e-05,2]
[422870054,1779553842000,-500.0,8.661e-05,2]
[422870053,1779553842000,-606.29500468,8.661e-05,2]
[422870055,1779553842000,-358.225268,8.661e-05,2]
[422870045,1779553842000,-500.0,8.661e-05,2]
[422870051,1779553842000,-500.0,8.661e-05,2]
[422870036,1779553842000,-500.0,8.661e-05,2]
[422870048,1779553842000,-500.0,8.661e-05,2]
[422870050,1779553842000,-439.67087862,8.661e-05,2]
[422870044,1779553842000,-500.0,8.661e-05,2]
[422870049,1779553842000,-500.0,8.661e-05,2]